[Event "FIDE WCCC G12 2018"]
[Site "Santiago de Compostela"]
[Date "2018.11.05"]
[Round "2"]
[White "Eswaran, Aksithi"]
[Black "Baalla, Nura"]
[Result "0-1"]
[ECO "C02"]
[WhiteElo "1760"]
[BlackElo "1565"]
[Annotator "NA RC"]
[PlyCount "106"]
[EventDate "2018.11.04"]
[EventType "swiss"]
[EventCountry "ESP"]
[SourceTitle "playchess.com"]
[Source "ChessBase"]
[SourceQuality "1"]
[TimeControl "40/5400+30:1800+30"]

1. e4 {[%emt 0:00:00]} e6 {[%emt 0:00:00]} 2. d4 {[%emt 0:00:00]} d5 {[%emt 0:00:00]} 3. e5 {[%emt 0:00:01]} c5 {[%emt 0:00:00]} 4. c3 {[%emt 0:00:10]} Nc6 {[%emt 0:00:00]} 5. Nf3 {[%emt 0:00:10]} Qb6 {[%emt 0:00:00]} 6. a3 {[%emt 0:00:12]} cxd4 {[%emt 0:00:30]} 7. cxd4 {[%emt 0:00:07]} Nh6 {[%emt 0:00:13]} 8. b4 {[%emt 0:00:37]} Nf5 {[%emt 0:00:23]} 9. Bb2 {[%emt 0:00:18]} Bd7 {[%emt 0:01:29]} 10. g4 {[%emt 0:01:40]} Nh6 {[%emt 0:08:42]} 11. h3 {[%emt 0:02:28]} f6 {[%emt 0:04:59]} 12. exf6 {[%emt 0:09:28]} gxf6 {[%emt 0:00:23]} 13. Nc3 {[%emt 0:02:55]} Nf7 {[%emt 0:16:34]} 14. Bg2 {[%emt 0:08:28]} Nd6 {[%emt 0:05:30]} 15. Na4 {[%emt 0:08:50]} Qd8 {[%emt 0:01:53]} 16. Nc5 {[%emt 0:07:36]} b6 {[%emt 0:04:44]} 17. Nxd7 {[%emt 0:01:37]} Qxd7 {[%emt 0:00:14]} 18. g5 {[%emt 0:05:40]} Rg8 {[%emt 0:25:15]} 19. h4 {[%emt 0:18:54]} a5 {[%emt 0:24:11]} 20. O-O {[%emt 0:11:46]} fxg5 {[%emt 0:01:31]} 21. Nxg5 {[%emt 0:01:10]} h6 {[%emt 0:01:12]} 22. Qh5+ {[%emt 0:02:05]} Kd8 {[%emt 0:00:21]} 23. Nh3 {[%emt 0:01:42]} Nf5 {[%emt 0:02:06]} 24. Nf4 {[%emt 0:03:22]} Bd6 {[%emt 0:00:45]} 25. Nxe6+ {[%emt 0:05:51]} Qxe6 {[%emt 0:00:32]} 26. Rae1 {[%emt 0:00:22]} Qf6 {[%emt 0:00:51]} 27. Kh1 {[%emt 0:01:32]} Nce7 {[%emt 0:00:31]} 28. Bh3 {[%emt 0:01:37]} Qxh4 {[%emt 0:00:32]} 29. Qxh4 {[%emt 0:00:24]} Nxh4 {[%emt 0:00:02]} 30. Re6 {[%emt 0:00:46]} Nhf5 {[%emt 0:00:46]} 31. Rf6 {[%emt 0:01:00]} axb4 {[%emt 0:00:39]} 32. Bxf5 {[%emt 0:00:55]} Nxf5 {[%emt 0:00:02]} 33. Rxf5 {[%emt 0:01:33]} bxa3 {[%emt 0:00:33]} 34. Ba1 {[%emt 0:00:25]} Rg5 {[%emt 0:00:25]} 35. Rf6 {[%emt 0:01:40]} Rh5+ {[%emt 0:00:21]} 36. Kg2 {[%emt 0:00:36]} Ke7 {[%emt 0:00:13]} 37. Rg6 {[%emt 0:01:34]} Rg5+ {[%emt 0:01:16]} 38. Rxg5 {[%emt 0:00:05]} hxg5 {[%emt 0:00:01]} 39. Re1+ {[%emt 0:00:52]} Kd7 {[%emt 0:00:52]} 40. f3 {[%emt 0:00:00]} Re8 {[%emt 0:00:00]} 41. Rb1 {[%emt 0:05:29]} Rb8 {[%emt 0:02:24]} 42. Kh3 {[%emt 0:01:26]} b5 {[%emt 0:00:29]} 43. Kg4 {[%emt 0:09:50]} Be7 {[%emt 0:02:13]} 44. Kf5 {[%emt 0:03:26]} b4 {[%emt 0:01:10]} 45. Rb3 {[%emt 0:03:55]} Kc6 {[%emt 0:02:44]} 46. Ke6 {[%emt 0:00:30]} Bf8 {[%emt 0:00:27]} 47. Rd3 {[%emt 0:01:10]} Rd8 {[%emt 0:01:58]} 48. Rb3 {[%emt 0:05:03]} Kb5 {[%emt 0:00:13]} 49. Kf5 {[%emt 0:00:50]} Ka4 {[%emt 0:00:13]} 50. Rb1 {[%emt 0:00:11]} b3 {[%emt 0:00:10]} 51. Kxg5 {[%emt 0:00:11]} Rb8 {[%emt 0:00:09]} 52. Bc3 {[%emt 0:00:27]} Bb4 {[%emt 0:00:30]} 53. Bxb4 {[%emt 0:00:25]} Rxb4 {[%emt 0:00:07]} 0-1

[Event "FIDE WCCC G12 2018"]
[Site "Santiago de Compostela"]
[Date "2018.11.05"]
[Round "2"]
[White "Savitha Shri B"]
[Black "Oz, Irem Ezra"]
[Result "1-0"]
[ECO "A06"]
[WhiteElo "1745"]
[BlackElo "1564"]
[Annotator "NA RC"]
[PlyCount "115"]
[EventDate "2018.11.04"]
[EventType "swiss"]
[EventCountry "ESP"]
[SourceTitle "playchess.com"]
[Source "ChessBase"]
[SourceQuality "1"]
[TimeControl "40/5400+30:1800+30"]

1. Nf3 {[%emt 0:00:00]} d5 {[%emt 0:00:00]} 2. g3 {[%emt 0:00:00]} Nf6 {[%emt 0:00:17]} 3. Bg2 {[%emt 0:00:00]} c6 {[%emt 0:00:19]} 4. O-O {[%emt 0:00:00]} Bf5 {[%emt 0:00:25]} 5. d3 {[%emt 0:00:00]} e6 {[%emt 0:00:16]} 6. Nbd2 {[%emt 0:00:02]} h6 {[%emt 0:01:24]} 7. c3 {[%emt 0:00:20]} Be7 {[%emt 0:02:05]} 8. Qc2 {[%emt 0:00:07]} O-O {[%emt 0:01:31]} 9. e4 {[%emt 0:00:32]} Bh7 {[%emt 0:03:01]} 10. Re1 {[%emt 0:04:03]} Na6 {[%emt 0:07:50]} 11. b4 {[%emt 0:19:59]} Nc7 {[%emt 0:01:51]} 12. Bb2 {[%emt 0:01:35]} c5 {[%emt 0:06:07]} 13. bxc5 {[%emt 0:02:10]} Bxc5 {[%emt 0:03:17]} 14. Nb3 {[%emt 0:00:10]} Be7 {[%emt 0:01:35]} 15. c4 {[%emt 0:03:07]} Rc8 {[%emt 0:01:42]} 16. Rad1 {[%emt 0:02:06]} Na6 {[%emt 0:06:33]} 17. Qe2 {[%emt 0:05:21]} Bb4 {[%emt 0:01:46]} 18. Rf1 {[%emt 0:01:49]} dxc4 {[%emt 0:04:44]} 19. dxc4 {[%emt 0:00:06]} Qe7 {[%emt 0:00:10]} 20. Nfd4 {[%emt 0:05:08]} Nd7 {[%emt 0:05:29]} 21. Nb5 {[%emt 0:02:36]} Nac5 {[%emt 0:08:42]} 22. a3 {[%emt 0:08:37]} Nxb3 {[%emt 0:09:55]} 23. axb4 {[%emt 0:00:30]} a5 {[%emt 0:06:53]} 24. Qd3 {[%emt 0:01:26]} Nbc5 {[%emt 0:11:38]} 25. bxc5 {[%emt 0:00:09]} Nxc5 {[%emt 0:00:04]} 26. Qd4 {[%emt 0:01:25]} f6 {[%emt 0:00:33]} 27. Ba3 {[%emt 0:00:44]} b6 {[%emt 0:01:07]} 28. Qd6 {[%emt 0:02:33]} Qxd6 {[%emt 0:01:23]} 29. Rxd6 {[%emt 0:00:14]} Rfd8 {[%emt 0:00:49]} 30. Rxb6 {[%emt 0:00:33]} Nxe4 {[%emt 0:00:39]} 31. Bxe4 {[%emt 0:00:11]} Bxe4 {[%emt 0:00:06]} 32. Nd6 {[%emt 0:00:05]} Rc6 {[%emt 0:00:11]} 33. Rxc6 {[%emt 0:00:32]} Bxc6 {[%emt 0:00:06]} 34. Rb1 {[%emt 0:00:06]} e5 {[%emt 0:00:38]} 35. Rb6 {[%emt 0:00:06]} Bf3 {[%emt 0:00:10]} 36. c5 {[%emt 0:00:24]} Kh7 {[%emt 0:01:47]} 37. c6 {[%emt 0:00:18]} Bxc6 {[%emt 0:01:56]} 38. Rxc6 {[%emt 0:00:07]} Rb8 {[%emt 0:00:05]} 39. Rc7 {[%emt 0:00:06]} Kg6 {[%emt 0:00:33]} 40. g4 {[%emt 0:00:00]} Rg8 {[%emt 0:00:00]} 41. h4 {[%emt 0:00:24]} h5 {[%emt 0:00:45]} 42. f3 {[%emt 0:00:19]} a4 {[%emt 0:00:27]} 43. Nf5 {[%emt 0:00:09]} Kh7 {[%emt 0:00:36]} 44. g5 {[%emt 0:01:38]} fxg5 {[%emt 0:00:12]} 45. hxg5 {[%emt 0:00:03]} Kh8 {[%emt 0:00:05]} 46. Bd6 {[%emt 0:00:29]} a3 {[%emt 0:00:48]} 47. Bxe5 {[%emt 0:00:30]} a2 {[%emt 0:00:06]} 48. Nxg7 {[%emt 0:00:26]} Ra8 {[%emt 0:01:17]} 49. Ne6+ {[%emt 0:00:14]} Kg8 {[%emt 0:00:13]} 50. Rg7+ {[%emt 0:00:06]} Kh8 {[%emt 0:00:09]} 51. Ra7+ {[%emt 0:00:01]} Kg8 {[%emt 0:00:12]} 52. Rxa8+ {[%emt 0:00:03]} Kf7 {[%emt 0:00:07]} 53. Nf4 {[%emt 0:00:04]} h4 {[%emt 0:00:15]} 54. Ra7+ {[%emt 0:00:04]} Ke8 {[%emt 0:00:06]} 55. g6 {[%emt 0:00:31]} h3 {[%emt 0:00:28]} 56. g7 {[%emt 0:00:03]} h2+ {[%emt 0:00:40]} 57. Kxh2 {[%emt 0:00:06]} Kd8 {[%emt 0:00:09]} 58. g8=Q# {[%emt 0:00:09]} 1-0

[Event "FIDE WCCC G12 2018"]
[Site "Santiago de Compostela"]
[Date "2018.11.05"]
[Round "2"]
[White "Francisco Guecamburu, Candela Be"]
[Black "Zhai, Pinran"]
[Result "1/2-1/2"]
[ECO "B52"]
[WhiteElo "1725"]
[BlackElo "1558"]
[Annotator "NA RC"]
[PlyCount "94"]
[EventDate "2018.11.04"]
[EventType "swiss"]
[EventCountry "ESP"]
[SourceTitle "playchess.com"]
[Source "ChessBase"]
[SourceQuality "1"]
[TimeControl "40/5400+30:1800+30"]

1. e4 {[%emt 0:00:00]} c5 {[%emt 0:00:00]} 2. Nf3 {[%emt 0:00:00]} d6 {[%emt 0:00:00]} 3. Bb5+ {[%emt 0:00:00]} Bd7 {[%emt 0:00:11]} 4. Bxd7+ {[%emt 0:00:00]} Nxd7 {[%emt 0:00:10]} 5. O-O {[%emt 0:00:08]} Ngf6 {[%emt 0:00:39]} 6. Re1 {[%emt 0:00:27]} e6 {[%emt 0:00:35]} 7. c3 {[%emt 0:01:41]} Be7 {[%emt 0:00:53]} 8. d4 {[%emt 0:00:18]} cxd4 {[%emt 0:01:34]} 9. cxd4 {[%emt 0:00:15]} O-O {[%emt 0:00:47]} 10. Nc3 {[%emt 0:01:11]} Nb6 {[%emt 0:01:59]} 11. Qd3 {[%emt 0:05:03]} Rc8 {[%emt 0:00:55]} 12. b3 {[%emt 0:03:52]} a6 {[%emt 0:10:05]} 13. Bb2 {[%emt 0:04:07]} Nfd7 {[%emt 0:05:47]} 14. Red1 {[%emt 0:08:58]} Na8 {[%emt 0:06:59]} 15. Rac1 {[%emt 0:07:52]} b5 {[%emt 0:00:29]} 16. Ne2 {[%emt 0:07:12]} Nab6 {[%emt 0:02:07]} 17. g3 {[%emt 0:04:12]} d5 {[%emt 0:03:03]} 18. e5 {[%emt 0:01:17]} Re8 {[%emt 0:01:03]} 19. Kg2 {[%emt 0:01:21]} f5 {[%emt 0:04:00]} 20. h4 {[%emt 0:05:30]} Nf8 {[%emt 0:02:11]} 21. Nf4 {[%emt 0:01:17]} Qd7 {[%emt 0:00:28]} 22. Rh1 {[%emt 0:02:38]} Rxc1 {[%emt 0:01:40]} 23. Bxc1 {[%emt 0:00:10]} a5 {[%emt 0:00:59]} 24. h5 {[%emt 0:04:15]} a4 {[%emt 0:01:19]} 25. Nh3 {[%emt 0:04:19]} axb3 {[%emt 0:00:59]} 26. axb3 {[%emt 0:00:09]} Rc8 {[%emt 0:00:34]} 27. h6 {[%emt 0:05:46]} g6 {[%emt 0:00:18]} 28. Nhg5 {[%emt 0:00:38]} Na8 {[%emt 0:01:38]} 29. Bd2 {[%emt 0:01:17]} Nc7 {[%emt 0:00:46]} 30. Rh4 {[%emt 0:03:31]} Na6 {[%emt 0:00:44]} 31. g4 {[%emt 0:00:41]} Nb4 {[%emt 0:00:40]} 32. Qe2 {[%emt 0:01:20]} Nc2 {[%emt 0:03:29]} 33. gxf5 {[%emt 0:01:18]} gxf5 {[%emt 0:00:21]} 34. Rh3 {[%emt 0:02:18]} Ng6 {[%emt 0:00:44]} 35. Rg3 {[%emt 0:06:55]} Rf8 {[%emt 0:04:55]} 36. Kh2 {[%emt 0:02:54]} Kh8 {[%emt 0:01:48]} 37. Qf1 {[%emt 0:07:00]} f4 {[%emt 0:02:53]} 38. Rg4 {[%emt 0:00:53]} Rf5 {[%emt 0:00:17]} 39. Qg2 {[%emt 0:00:42]} Bd8 {[%emt 0:01:55]} 40. Nxh7 {[%emt 0:00:00]} Rh5+ {[%emt 0:00:00]} 41. Kg1 {[%emt 0:05:33]} Qxh7 {[%emt 0:04:00]} 42. Rxg6 {[%emt 0:00:09]} Rxh6 {[%emt 0:00:03]} 43. Rxh6 {[%emt 0:00:43]} Qxh6 {[%emt 0:00:02]} 44. Qh2 {[%emt 0:00:10]} Qxh2+ {[%emt 0:00:22]} 45. Kxh2 {[%emt 0:00:10]} Na1 {[%emt 0:00:09]} 46. Kh3 {[%emt 0:17:12]} Nxb3 {[%emt 0:00:24]} 47. Kg4 {[%emt 0:00:32]} Kg7 {[%emt 0:00:06]} 1/2-1/2

[Event "FIDE WCCC G12 2018"]
[Site "Santiago de Compostela"]
[Date "2018.11.05"]
[Round "2"]
[White "Boramanikar Tanisha S"]
[Black "Kovacsi, Sara Kata"]
[Result "1-0"]
[ECO "B21"]
[WhiteElo "1716"]
[BlackElo "1554"]
[Annotator "NA"]
[PlyCount "115"]
[EventDate "2018.11.04"]
[EventType "swiss"]
[EventCountry "ESP"]
[SourceTitle "playchess.com"]
[Source "ChessBase"]
[SourceQuality "1"]
[TimeControl "40/5400+30:1800+30"]

1. e4 {[%emt 0:00:00]} c5 {[%emt 0:00:00]} 2. d4 {[%emt 0:00:00]} cxd4 {[%emt 0:00:00]} 3. c3 {[%emt 0:00:04]} Nf6 {[%emt 0:00:00]} 4. e5 {[%emt 0:00:13]} Nd5 {[%emt 0:00:00]} 5. Bc4 {[%emt 0:00:38]} Nb6 {[%emt 0:01:59]} 6. Bb3 {[%emt 0:00:47]} e6 {[%emt 0:01:33]} 7. Nf3 {[%emt 0:01:27]} Nc6 {[%emt 0:06:10]} 8. O-O {[%emt 0:02:00]} Qc7 {[%emt 0:06:30]} 9. cxd4 {[%emt 0:03:35]} d6 {[%emt 0:12:53]} 10. Re1 {[%emt 0:03:43]} dxe5 {[%emt 0:03:53]} 11. dxe5 {[%emt 0:02:13]} Be7 {[%emt 0:03:40]} 12. Nc3 {[%emt 0:02:18]} O-O {[%emt 0:00:41]} 13. Bf4 {[%emt 0:07:14]} Rd8 {[%emt 0:04:38]} 14. Qe2 {[%emt 0:02:10]} Na5 15. Nb5 {[%emt 0:05:16]} Qb8 {[%emt 0:07:13]} 16. Be3 {[%emt 0:10:53]} Nxb3 {[%emt 0:06:09]} 17. axb3 {[%emt 0:00:36]} Bd7 {[%emt 0:02:04]} 18. Nxa7 {[%emt 0:11:28]} Rxa7 {[%emt 0:01:33]} 19. Bxb6 {[%emt 0:00:26]} Rxa1 {[%emt 0:00:09]} 20. Rxa1 {[%emt 0:00:35]} Rc8 {[%emt 0:01:35]} 21. Be3 {[%emt 0:10:38]} Bc6 {[%emt 0:01:31]} 22. h3 {[%emt 0:07:38]} Bd5 {[%emt 0:01:58]} 23. Qd1 {[%emt 0:07:53]} Bc5 {[%emt 0:05:30]} 24. Bxc5 {[%emt 0:07:34]} Rxc5 {[%emt 0:03:52]} 25. Nd4 {[%emt 0:02:55]} b6 {[%emt 0:06:55]} 26. Qe2 {[%emt 0:03:57]} h6 {[%emt 0:05:38]} 27. Qe3 {[%emt 0:01:39]} Qc7 {[%emt 0:02:07]} 28. f4 {[%emt 0:02:49]} Qb7 {[%emt 0:01:05]} 29. Qg3 {[%emt 0:01:43]} b5 {[%emt 0:04:57]} 30. Qf2 {[%emt 0:01:38]} Qb6 {[%emt 0:02:00]} 31. Rd1 {[%emt 0:00:45]} Rc7 {[%emt 0:01:38]} 32. Kf1 {[%emt 0:00:37]} Qc5 {[%emt 0:01:50]} 33. Rd2 {[%emt 0:00:36]} Qb4 {[%emt 0:02:28]} 34. Qe3 {[%emt 0:00:25]} Rc1+ {[%emt 0:01:09]} 35. Kf2 {[%emt 0:00:18]} Rc7 {[%emt 0:02:31]} 36. Qd3 {[%emt 0:00:41]} Rb7 {[%emt 0:00:50]} 37. Qc3 {[%emt 0:00:29]} Qxc3 {[%emt 0:00:56]} 38. bxc3 {[%emt 0:00:01]} Kf8 {[%emt 0:00:22]} 39. Ke3 {[%emt 0:00:12]} Ke7 {[%emt 0:00:35]} 40. Nf5+ {[%emt 0:00:00]} Kf8 {[%emt 0:00:00]} 41. Nd6 {[%emt 0:01:05]} Rb6 {[%emt 0:02:17]} 42. Ra2 {[%emt 0:01:21]} f6 {[%emt 0:02:13]} 43. c4 {[%emt 0:01:21]} bxc4 {[%emt 0:01:13]} 44. bxc4 {[%emt 0:00:02]} Bc6 {[%emt 0:01:07]} 45. Kd4 {[%emt 0:00:32]} fxe5+ {[%emt 0:01:27]} 46. Kc5 {[%emt 0:00:37]} Rb8 {[%emt 0:01:38]} 47. Kxc6 {[%emt 0:00:09]} exf4 {[%emt 0:00:38]} 48. Kc7 {[%emt 0:00:13]} Rb3 {[%emt 0:00:20]} 49. c5 {[%emt 0:00:16]} Rc3 {[%emt 0:03:31]} 50. Kd7 {[%emt 0:00:18]} g5 {[%emt 0:00:42]} 51. c6 {[%emt 0:00:12]} h5 {[%emt 0:00:37]} 52. c7 {[%emt 0:00:07]} g4 {[%emt 0:00:07]} 53. c8=Q+ {[%emt 0:00:19]} Rxc8 {[%emt 0:00:07]} 54. Nxc8 {[%emt 0:00:06]} Kf7 {[%emt 0:01:11]} 55. hxg4 {[%emt 0:00:14]} hxg4 {[%emt 0:00:05]} 56. Rf2 {[%emt 0:00:11]} e5 {[%emt 0:00:14]} 57. Kd6 {[%emt 0:00:03]} Kf6 {[%emt 0:00:09]} 58. Ne7 {[%emt 0:00:13]} 1-0

[Event "FIDE WCCC G12 2018"]
[Site "Santiago de Compostela"]
[Date "2018.11.05"]
[Round "2"]
[White "Denic, Hana"]
[Black "Kairbekova, Amina"]
[Result "0-1"]
[ECO "C17"]
[WhiteElo "1636"]
[BlackElo "1939"]
[Annotator "NA RC"]
[PlyCount "74"]
[EventDate "2018.11.04"]
[EventType "swiss"]
[EventCountry "ESP"]
[SourceTitle "playchess.com"]
[Source "ChessBase"]
[SourceQuality "1"]
[TimeControl "40/5400+30:1800+30"]

{[%evp 8,74,-2,32767,0,-52,-62,-56,-56,-95,-79,-268,-226,-284,-237,-256,-218,-241,-241,-247,-236,-254,-262,-279,-233,-316,-350,-386,-427,-408,-416,-468,-471,-490,-450,-554,-470,-480,-483,-537,-514,32767,-635,-712,-821,-783,-816,-846,-893,-966,-1200,-1031,-1168,-1133,-1058,-1095,-841,-964,-880,-1087,-983,-1306,-2189,-1400,-1695,-1629,-1838,-1377,-29977]} 1. e4 {[%emt 0:00:00]} e6 {[%emt 0:00:00]} 2. d4 {[%emt 0:00:00]} d5 {[%emt 0:00:00]} 3. Nc3 {[%emt 0:00:17]} Bb4 {[%emt 0:00:00]} 4. e5 {[%emt 0:02:17]} c5 {[%emt 0:00:00]} 5. Nf3 {[%emt 0:01:27]} Nc6 {[%emt 0:05:38]} 6. Bd2 {[%emt 0:05:48] C17: French: 3 Nc3 Bb4 4 e5 c5 sidelines} (6. dxc5 Nge7 7. Bb5 Bxc5 8. O-O a6 9. Bxc6+ Nxc6 10. Bg5 Qc7 11. Re1 Qb6 12. Qd2 Qxb2 13. a3 Qb6 {0-1 (57) Fernandez Garcia,J (2478)-Cheparinov,I (2567) Collado Villalba 2004}) 6... cxd4 {[%emt 0:02:43]} 7. Nb5 {[%emt 0:01:33] LiveBook: 3 Games} Bc5 {[%emt 0:00:08]} 8. a4 $146 {[%emt 0:03:32]} ({Predecessor:} 8. a3 a6 9. b4 axb5 10. bxc5 Bd7 11. Bd3 Qc7 12. Qe2 b4 13. a4 {½-½ (46) Vojta,T (2368)-Cech,P (2377) Rakovnik 2011}) 8... a6 {[%emt 0:00:32]} 9. Na3 $2 {[%emt 0:00:34]} (9. b4 $17 axb5 10. bxc5 bxa4 11. c3) 9... Qc7 {[%emt 0:00:18]} 10. Qe2 {[%emt 0:03:01]} (10. c3 $142) 10... Nge7 {[%emt 0:00:53]} 11. g3 {[%emt 0:07:02]} Ng6 {[%emt 0:00:08]} 12. Bg2 {[%emt 0:00:40]} Ngxe5 {[%emt 0:01:11]} 13. O-O {[%emt 0:01:34]} Nxf3+ {[%emt 0:00:09]} 14. Bxf3 {[%emt 0:00:51]} O-O {[%emt 0:00:15]} 15. Bg2 {[%emt 0:01:21]} Qd6 {[%emt 0:01:10]} 16. Qh5 {[%emt 0:01:14]} (16. c4 {was necessary.}) 16... e5 {[%emt 0:02:28]} 17. Nb1 {[%emt 0:02:16]} Be6 {[%emt 0:00:29]} 18. Kh1 {[%emt 0:02:53]} Qd7 {[%emt 0:01:31]} 19. h3 {[%emt 0:01:01]} e4 {[%emt 0:01:48]} 20. Bf4 {[%emt 0:03:21]} Rfe8 {[%emt 0:00:51]} 21. g4 {[%emt 0:02:45]} Bd6 {[%emt 0:02:09]} 22. Bxd6 {[%emt 0:06:16]} Qxd6 {[%emt 0:02:56]} 23. Nd2 {[%emt 0:11:41]} Nb4 {[%emt 0:00:41]} 24. Rac1 {[%emt 0:04:32]} Rac8 {[%emt 0:00:05]} 25. c4 {[%emt 0:03:54]} e3 {[%emt 0:03:36]} 26. fxe3 {[%emt 0:07:21]} dxe3 {[%emt 0:00:05]} 27. Nf3 {[%emt 0:01:48]} e2 {[%emt 0:00:26]} 28. Rg1 {[%emt 0:03:36]} Nd3 {[%emt 0:00:10]} 29. Qh4 {[%emt 0:02:39]} Nxc1 {[%emt 0:00:37]} 30. Rxc1 {[%emt 0:00:10]} Bd7 {[%emt 0:02:04]} 31. Re1 {[%emt 0:10:11]} dxc4 {[%emt 0:02:20]} 32. Ng5 {[%emt 0:04:06]} Qg6 {[%emt 0:00:17]} 33. Kg1 {[%emt 0:02:39]} Bc6 {[%emt 0:00:34]} 34. Bxc6 {[%emt 0:00:51]} Rxc6 {[%emt 0:00:16]} 35. Nf3 {[%emt 0:00:11]} Qe4 {[%emt 0:00:40]} 36. Qg3 {[%emt 0:00:50]} Rf6 {[%emt 0:00:31]} 37. Kg2 {[%emt 0:01:28]} h6 {[%emt 0:01:21]} 0-1

[Event "FIDE WCCC G12 2018"]
[Site "Santiago de Compostela"]
[Date "2018.11.05"]
[Round "2"]
[White "Zavivaeva, Emilia"]
[Black "Omonova, Umida"]
[Result "0-1"]
[ECO "B36"]
[WhiteElo "1633"]
[BlackElo "1854"]
[Annotator "NA RC"]
[PlyCount "72"]
[EventDate "2018.11.04"]
[EventType "swiss"]
[EventCountry "ESP"]
[SourceTitle "playchess.com"]
[Source "ChessBase"]
[SourceQuality "1"]
[TimeControl "40/5400+30:1800+30"]

{[%evp 10,63,46,41,53,32767,44,32767,41,30,43,45,55,44,58,52,41,28,35,-1,-12,0,-3,0,18,8,24,10,19,10,0,0,0,0,26,-6,-6,-6,-3,-8,9,-2,0,32767,32767,32767,0,32767,32767,32767,32767,32767,0,32767,0,-29983]} 1. e4 {[%emt 0:00:00]} c5 {[%emt 0:01:30]} 2. Nf3 {[%emt 0:01:10]} Nc6 {[%emt 0:00:34]} 3. d4 {[%emt 0:00:13]} cxd4 {[%emt 0:01:09]} 4. Nxd4 {[%emt 0:00:29]} g6 {[%emt 0:03:00]} 5. c4 {[%emt 0:01:48]} Nf6 {[%emt 0:00:50]} 6. Nc3 {[%emt 0:00:43]} d6 {[%emt 0:00:10]} 7. Be2 {[%emt 0:01:11]} Nxd4 {[%emt 0:01:38]} 8. Qxd4 {[%emt 0:00:08]} Bg7 {[%emt 0:01:01]} 9. O-O {[%emt 0:04:53]} O-O {[%emt 0:00:09]} 10. Qd1 {[%emt 0:02:53]} a5 {[%emt 0:03:23] B36: Sicilian: Maroczy Bind: Gurgenidze System} 11. Be3 {[%emt 0:03:52] LiveBook: 3 Partien} Be6 {[%emt 0:04:48]} 12. Rc1 {[%emt 0:00:53]} a4 {[%emt 0:03:22]} 13. f3 {[%emt 0:04:28]} Qa5 {[%emt 0:04:38]} 14. Nd5 $146 {[%emt 0:07:41]} ({Predecessor:} 14. b3 axb3 15. axb3 Rfc8 16. Nb5 Nd7 {1-0 (32) Chan,W (2264)-Li,C (2622) Beijing 2008}) 14... Nxd5 {[%emt 0:03:26]} 15. exd5 {[%emt 0:01:47]} Bf5 {[%emt 0:02:02]} 16. Bd4 {[%emt 0:02:32]} Bh6 {[%emt 0:03:18]} 17. f4 {[%emt 0:06:30]} e5 {[%emt 0:14:01]} 18. dxe6 {[%emt 0:13:48]} Bxe6 {[%emt 0:01:33]} 19. Kh1 {[%emt 0:06:59]} Rfe8 {[%emt 0:06:16]} 20. Bf6 {[%emt 0:11:49]} Bf5 {[%emt 0:03:30]} 21. Bf3 {[%emt 0:11:01]} Qb6 {[%emt 0:03:23]} 22. Bd5 {[%emt 0:01:32]} Bg7 {[%emt 0:03:25]} 23. Bxg7 {[%emt 0:01:50]} Kxg7 {[%emt 0:00:01]} 24. Qd2 {[%emt 0:01:11]} Rac8 {[%emt 0:06:01]} 25. Rf3 {[%emt 0:03:20]} Be4 {[%emt 0:07:25]} 26. Bxe4 {[%emt 0:02:14]} Rxe4 {[%emt 0:00:02]} 27. f5 {[%emt 0:01:07]} f6 {[%emt 0:03:33]} 28. fxg6 {[%emt 0:05:17]} hxg6 {[%emt 0:00:02]} 29. b3 {[%emt 0:00:13]} Rce8 {[%emt 0:01:15]} 30. h3 {[%emt 0:00:58]} R8e5 {[%emt 0:03:42]} 31. Rd1 {[%emt 0:02:52]} Re2 {[%emt 0:01:27]} 32. Qxd6 {[%emt 0:00:59]} (32. Qf4 $11 Rf5 33. Qg4 Rxf3 34. Qxf3 Rxa2 35. bxa4) 32... Re1+ {[%emt 0:00:12]} 33. Kh2 {[%emt 0:00:26]} Qg1+ {[%emt 0:00:09]} 34. Kg3 {[%emt 0:00:17]} Rg5+ {[%emt 0:00:16]} 35. Kh4 {[%emt 0:00:19]} Re4+ {[%emt 0:00:11]} 36. g4 {[%emt 0:01:10]} Rh5# {[%emt 0:00:16]} 0-1